lending/lending_fUSD_20240120
["ID","MTS","AMOUNT","RATE_DAILY","PERIOD"]
[312254100,1705711852093,-152.27601333,0.000248,2]
[312254101,1705711852102,-167.3148319,0.000248,2]
[312254102,1705711852110,-6302.98709689,0.000248,2]
[312254103,1705711852119,-216.02414808,0.000248,2]
[312254104,1705711852129,-597.35120648,0.000248,2]
[312254105,1705711852138,-931.85462392,0.000248,2]
[312254106,1705711852147,-239.41115517,0.000248,9]
[312254107,1705711852156,-150.0,0.00024864,2]
[312254108,1705711852334,-479.06,0.00024877,2]
[312254109,1705711852345,-160.92,0.00024894,2]
[312254110,1705711852354,-733.61759729,0.00024896,2]
[312254111,1705711852365,-43667.3781132,0.00024897,2]
[312254112,1705711852376,-1812.4877663,0.00024897,2]
[312254113,1705711852385,-521.4827576,0.00024898,2]
[312254114,1705711852394,-940.89605154,0.00024898,2]
[312254115,1705711852404,-19126.13858845,0.00024899,2]
[312254116,1705711852414,-1246.97821379,0.00024899,2]
[312254117,1705711852427,-989.0,0.00024899,2]
[312254118,1705711852437,-646890.88831438,0.000249,3]
[312254119,1705711852447,-779849.35503411,0.000249,3]
[312254120,1705711852788,-146973.75055584,0.000249,3]
[312254121,1705711852800,-261.07890245,0.000249,3]
[312254122,1705711852811,-1390.56383989,0.000249,3]
[312254123,1705711852823,-2512.84309114,0.000249,3]
[312254124,1705711852834,-4214.98741883,0.000249,3]
[312254125,1705711852845,-1995.84216007,0.000249,3]
[312254126,1705711853126,-500.0,0.00024657,2]
[312254127,1705711853136,-500.0,0.00024657,2]
[312254128,1705711853145,-727.15731009,0.000249,3]
[312254129,1705711853163,-479.80109008,0.000249,3]
[312254130,1705711853228,-467345.7882645,0.000249,3]
[312254131,1705711853245,-347.61572832,0.000249,3]
[312254132,1705711853257,-3516.06945431,0.000249,3]
[312254133,1705711853269,-658.85282172,0.000249,3]
[312254134,1705711853280,-736.48501665,0.000249,3]
[312254135,1705711853291,-1297.13033065,0.000249,3]
[312254136,1705711853302,-280.21103288,0.000249,3]
[312254137,1705711853314,-283.7162531,0.000249,3]
[312254138,1705711853329,-4639.4,0.000249,3]
[312254177,1705712239002,5800.0,0.00018695,2]
[312254178,1705712261458,5800.0,0.00018686,2]
[312254179,1705712400143,357.84158297,0.00018686,2]
[312254180,1705712402923,150.0,0.00018686,2]
[312254181,1705712403114,150.0,0.00018686,2]
[312254182,1705712403306,150.0,0.00018686,2]
[312254183,1705712403557,150.0,0.00018686,2]
[312254184,1705712403751,150.0,0.00018686,2]
[312254185,1705712404176,150.0,0.00018686,2]
[312254186,1705712404395,150.0,0.00018686,2]
[312254187,1705712404548,483.25479146,0.00017998,2]
[312254188,1705712404638,150.0,0.00018686,2]
[312254189,1705712404840,150.0,0.00018686,2]
[312254190,1705712405186,60.43260159,0.00018686,2]
[312254191,1705712405216,89.56739841,0.00018686,2]
[312254192,1705712405364,262.06447906,0.00018686,2]
[312254193,1705712406124,283.29816887,0.00018686,2]
[312254194,1705712427272,283.18572721,0.00018686,2]
[312254195,1705712432911,209.11934277,0.00018686,2]
[312254196,1705712439143,372.6040685,0.00018686,2]
[312254197,1705712439271,2471.37061823,0.00018686,2]
[312254198,1705712440244,28.79019695,0.00018499,2]
[312254199,1705712440264,2006.78979588,0.00018499,2]
[312254200,1705712441043,155.0,0.00018686,2]
[312254201,1705712443164,207.37074109,0.00018686,2]
[312254202,1705712459093,155.0,0.00018686,2]
[312254203,1705712475028,155.0,0.00018686,2]
[312254204,1705712493039,224.63428457,0.00018686,2]
[312254206,1705712793794,204.0,0.0001801,2]
[312254214,1705713031496,-1136.8526006,0.00020219,2]
[312254215,1705713031506,-204.0,0.0002022,5]
[312254216,1705713031516,-606.46,0.0002074,2]
[312254217,1705713031526,-1026.35728131,0.00022,3]
[312254218,1705713031538,-223.64271869,0.00022,3]
[312254219,1705713031548,-204.0,0.0002243,8]
[312254220,1705713031557,-630.37633062,0.00022489,2]
[312254221,1705713031569,-4546.47271205,0.00022489,2]
[312254222,1705713031579,-150.0,0.00022489,2]
[312254223,1705713031589,-150.0,0.00022489,2]
[312254224,1705713031603,-2444.74560792,0.0002249,5]
[312254225,1705713031620,-428.08621968,0.0002249,5]
[312254226,1705713031636,-298.69349883,0.0002249,5]
[312254227,1705713031670,-786.49248792,0.0002249,5]
[312254228,1705713031682,-877.12836577,0.0002249,5]
[312254229,1705713031698,-2090.2565187,0.0002249,5]
[312254230,1705713031708,-1000.0,0.00022499,2]
[312254231,1705713031718,-362.36700236,0.000225,2]
[312254232,1705713031728,-19956.93808517,0.000225,2]
[312254233,1705713031738,-12242.60596385,0.000225,2]
[312254234,1705713031748,-250.0,0.00022641,2]
[312254235,1705713031758,-202.33,0.00022676,2]
[312254236,1705713031768,-499.99,0.00022676,2]
[312254237,1705713031777,-686.17,0.00022676,2]
[312254238,1705713031787,-2000.0,0.0002275,2]
[312254240,1705713031797,-409.84,0.00022761,2]
[312254242,1705713031807,-1060.91,0.00022787,2]
[312254244,1705713031817,-25867.0299,0.0002288,2]
[312254246,1705713031827,-1070.38,0.00022884,2]
[312254248,1705713031836,-157.26,0.00022895,2]
[312254250,1705713031846,-156.39,0.00022952,2]
[312254254,1705713031855,-44969.42500832,0.0002298,2]
[312254258,1705713031864,-4926.24,0.0002298,2]
[312254261,1705713031874,-196.26,0.00022996,2]
[312254264,1705713031887,-1154.62,0.00023,2]
[312254267,1705713031896,-150.0,0.00023,2]
[312254270,1705713031906,-606.46,0.00023004,2]
[312254273,1705713031916,-157.26,0.00023045,2]
[312254276,1705713031926,-157.26,0.00023194,2]
[312254279,1705713031935,-590.16,0.0002324,2]
[312254283,1705713031945,-157.26,0.00023343,2]
[312254286,1705713031959,-1915.5,0.00023368,2]
[312254289,1705713031969,-2531.84,0.00023368,2]
[312254292,1705713031978,-19999.99,0.00023368,2]
[312254295,1705713031987,-1051.53016497,0.00023368,2]
[312254300,1705713032006,-1753.12983503,0.00023368,2]
[312254303,1705713032016,-157.26,0.00023492,2]
[312254305,1705713032025,-250.0,0.000235,2]
[312254308,1705713032035,-157.26,0.00023641,2]
[312254311,1705713032045,-656.64058921,0.00023699,2]
[312254314,1705713032054,-158.77,0.000237,2]
[312254317,1705713032063,-161.73,0.00023727,2]
[312254320,1705713032072,-157.26,0.0002379,2]
[312254323,1705713032081,-2475.29256209,0.00023915,2]
[312254326,1705713032091,-157.26,0.00023939,2]
[312254328,1705713032100,-164.41,0.0002399,2]
[312254330,1705713032110,-431.59040182,0.00024,2]
[312254332,1705713032120,-201.16205573,0.00024,2]
[312254334,1705713032130,-1300.0,0.00024,3]
[312254336,1705713032139,-250.0,0.00024,2]
[312254339,1705713032149,-161.73,0.00024044,2]
[312254341,1705713032159,-157.26,0.00024088,2]
[312254343,1705713032169,-352.6,0.00024205,2]
[312254345,1705713032178,-836.64,0.00024247,2]
[312254346,1705713032188,-545.929,0.00024297,2]
[312254347,1705713032197,-308.451,0.00024297,2]
[312254348,1705713032207,-1358.0,0.00024297,2]
[312254349,1705713032217,-836.0,0.00024297,2]
[312254350,1705713032228,-1854.0,0.00024297,2]
[312254351,1705713032237,-449.0,0.00024297,2]
[312254352,1705713032247,-946.0,0.00024297,2]
[312254353,1705713032257,-1250.0,0.00024297,2]
[312254354,1705713032268,-214.0,0.00024297,2]
[312254355,1705713032279,-1233.0,0.00024297,2]
[312254356,1705713032288,-299.75,0.00024297,2]
[312254357,1705713032298,-267.815,0.00024297,2]
[312254358,1705713032307,-1934.0,0.00024297,2]
[312254359,1705713032317,-492.879,0.00024297,2]
[312254360,1705713032326,-319.0,0.00024297,2]
[312254361,1705713032335,-507.0,0.00024297,2]
[312254362,1705713032345,-869.0,0.00024297,2]
[312254363,1705713032356,-156.547,0.00024297,2]
[312254364,1705713032365,-5187.0,0.00024297,2]
[312254365,1705713032375,-241.463,0.00024297,2]
[312254366,1705713032385,-5247.215,0.00024297,2]
[312254367,1705713032394,-2274.0,0.00024297,2]
[312254368,1705713032403,-2906.0,0.00024297,2]
[312254369,1705713032413,-19644.0,0.00024297,2]
[312254370,1705713032423,-161.73,0.0002436,2]
[312254371,1705713032432,-155.0,0.00024408,2]
[312254372,1705713032441,-330.58082934,0.00024479,4]
[312254373,1705713032451,-250.0,0.00024479,2]
[312254374,1705713032460,-150.00000002,0.00024486,2]
[312254375,1705713032469,-250.0,0.000245,2]
[312254376,1705713032478,-1070.38,0.00024528,2]
[312254377,1705713032487,-59962.4369,0.00024556,2]
[312254378,1705713032496,-2000.0,0.00024557,3]
[312254379,1705713032505,-271.0315,0.00024557,2]
[312254380,1705713032515,-1002.2449,0.00024557,2]
[312254381,1705713032524,-188.60766622,0.00024557,2]
[312254382,1705713032534,-1000.0,0.00024614,3]
[312254383,1705713032543,-1000.0,0.00024636,3]
[312254384,1705713032552,-204.0,0.0002464,11]
[312254385,1705713032562,-185.09475926,0.00024647,2]
[312254386,1705713032571,-151.012,0.00024648,3]
[312254387,1705713032581,-151.012,0.00024648,3]
[312254388,1705713032591,-151.012,0.00024648,3]
[312254389,1705713032601,-151.012,0.00024648,3]
[312254390,1705713032610,-151.012,0.00024648,3]
[312254391,1705713032630,-151.012,0.00024648,3]
[312254392,1705713032644,-151.012,0.00024648,3]
[312254393,1705713032654,-151.012,0.00024648,3]
[312254394,1705713032664,-151.012,0.00024648,3]
[312254395,1705713032674,-151.012,0.00024648,3]
[312254396,1705713032684,-151.012,0.00024648,3]
[312254397,1705713032694,-151.012,0.00024648,3]
[312254398,1705713032703,-151.012,0.00024648,3]
[312254399,1705713032713,-151.012,0.00024648,3]
[312254400,1705713032723,-151.012,0.00024648,3]
[312254401,1705713032733,-151.012,0.00024648,3]
[312254402,1705713032743,-151.012,0.00024648,3]
[312254403,1705713032752,-151.012,0.00024648,3]
[312254404,1705713032762,-151.012,0.00024648,3]
[312254405,1705713032771,-151.012,0.00024648,3]
[312254406,1705713032781,-151.012,0.00024648,3]
[312254407,1705713032790,-151.012,0.00024648,3]
[312254408,1705713032800,-151.012,0.00024648,3]
[312254409,1705713032810,-151.012,0.00024648,3]
[312254410,1705713032819,-151.012,0.00024648,3]
[312254411,1705713032829,-151.012,0.00024648,3]
[312254412,1705713032838,-151.012,0.00024648,3]
[312254413,1705713032848,-151.012,0.00024648,3]
[312254414,1705713032858,-151.012,0.00024648,3]
[312254415,1705713032867,-151.012,0.00024648,3]
[312254416,1705713032878,-151.012,0.00024648,3]
[312254417,1705713032889,-151.012,0.00024648,3]
[312254418,1705713032899,-151.012,0.00024648,3]
[312254419,1705713032909,-151.012,0.00024648,3]
[312254420,1705713032918,-151.012,0.00024648,3]
[312254421,1705713032929,-151.012,0.00024648,3]
[312254422,1705713032939,-151.012,0.00024648,3]
[312254423,1705713032948,-151.012,0.00024648,3]
[312254424,1705713032959,-151.012,0.00024648,3]
[312254425,1705713032969,-151.012,0.00024648,3]
[312254426,1705713032978,-151.012,0.00024648,3]
[312254427,1705713032988,-151.012,0.00024648,3]
[312254428,1705713032997,-151.012,0.00024648,3]
[312254429,1705713033007,-151.012,0.00024648,3]
[312254430,1705713033017,-151.012,0.00024648,3]
[312254431,1705713033027,-151.012,0.00024648,3]
[312254432,1705713033320,-151.012,0.00024648,3]
[312254433,1705713033331,-151.012,0.00024648,3]
[312254434,1705713033340,-151.012,0.00024648,3]
[312254435,1705713033351,-151.012,0.00024648,3]
[312254436,1705713033365,-172.84624227,0.00024648,3]
[312254437,1705713033376,-940.89605154,0.00024655,2]
[312254438,1705713033386,-150.0,0.00024655,2]
[312254439,1705713033395,-3233.92,0.00024656,2]
[312254440,1705713033405,-3233.92,0.00024656,2]
[312254441,1705713033414,-3233.92,0.00024656,2]
[312254442,1705713033423,-3233.92,0.00024656,2]
[312254443,1705713033432,-3233.92,0.00024656,2]
[312254444,1705713033442,-3233.92,0.00024656,2]
[312254445,1705713033452,-3233.92,0.00024656,2]
[312254446,1705713033462,-3233.92,0.00024656,2]
[312254447,1705713033471,-3233.92,0.00024656,2]
[312254448,1705713033480,-3233.92,0.00024656,2]
[312254449,1705713033489,-3233.92,0.00024656,2]
[312254450,1705713033499,-3233.92,0.00024656,2]
[312254451,1705713033509,-3233.92,0.00024656,2]
[312254452,1705713033518,-3233.92,0.00024656,2]
[312254453,1705713033527,-3233.92,0.00024656,2]
[312254454,1705713033536,-3233.92,0.00024656,2]
[312254455,1705713033546,-3233.92,0.00024656,2]
[312254456,1705713033557,-3233.92,0.00024656,2]
[312254457,1705713033569,-3233.92,0.00024656,2]
[312254458,1705713033578,-3233.92,0.00024656,2]
[312254459,1705713033587,-3233.92,0.00024656,2]
[312254460,1705713033597,-3233.92,0.00024656,2]
[312254461,1705713033606,-3233.92,0.00024656,2]
[312254462,1705713033616,-3233.93226084,0.00024656,2]
[312254463,1705713033629,-174.02292783,0.00024657,2]
[312254464,1705713033639,-572.32540294,0.00024657,2]
[312254465,1705713033650,-500.0,0.00024657,2]
[312254466,1705713033659,-509.57658557,0.00024657,2]
[312254467,1705713033669,-500.0,0.00024657,2]
[312254468,1705713033678,-500.0,0.00024657,2]
[312254469,1705713033687,-500.0,0.00024657,2]
[312254470,1705713033697,-500.0,0.00024657,2]
[312254471,1705713033707,-500.0,0.00024657,2]
[312254472,1705713033717,-500.0,0.00024657,2]
[312254473,1705713033726,-500.0,0.00024657,2]
[312254474,1705713033735,-500.0,0.00024657,2]
[312254475,1705713033745,-500.0,0.00024657,2]
[312254476,1705713033754,-500.0,0.00024657,2]
[312254477,1705713033764,-500.0,0.00024657,2]
[312254478,1705713033773,-500.0,0.00024657,2]
[312254479,1705713033782,-512.29477281,0.00024657,2]
[312254480,1705713033792,-500.0,0.00024657,2]
[312254481,1705713033800,-500.0,0.00024657,2]
[312254482,1705713033810,-250.0,0.00024657,2]
[312254483,1705713033820,-500.0,0.00024657,2]
[312254484,1705713033829,-500.0,0.00024657,2]
[312254485,1705713033839,-500.0,0.00024657,2]
[312254486,1705713033849,-500.0,0.00024657,2]
[312254487,1705713033859,-505.4191288,0.00024657,2]
[312254488,1705713033869,-500.0,0.00024657,2]
[312254489,1705713033881,-500.0,0.00024657,2]
[312254490,1705713033891,-500.0,0.00024657,2]
[312254491,1705713033901,-500.0,0.00024657,2]
[312254492,1705713033910,-500.0,0.00024657,2]
[312254493,1705713033919,-500.0,0.00024657,2]
[312254494,1705713033929,-176.56675882,0.00024657,2]
[312254495,1705713033939,-500.0,0.00024657,2]
[312254496,1705713033948,-500.0,0.00024657,2]
[312254497,1705713033959,-500.0,0.00024657,2]
[312254498,1705713033968,-503.13957987,0.00024657,2]
[312254499,1705713033977,-500.0,0.00024657,2]
[312254500,1705713033987,-500.0,0.00024657,2]
[312254501,1705713033996,-500.0,0.00024657,2]
[312254502,1705713034006,-500.0,0.00024657,2]
[312254503,1705713034015,-514.47565013,0.00024657,2]
[312254504,1705713034024,-210.24939253,0.00024657,2]
[312254505,1705713034033,-500.0,0.00024657,2]
[312254506,1705713034043,-500.0,0.00024657,2]
[312254507,1705713034053,-500.0,0.00024657,2]
[312254508,1705713034061,-500.0,0.00024657,2]
[312254509,1705713034070,-500.0,0.00024657,2]
[312254510,1705713034079,-500.0,0.00024657,2]
[312254511,1705713034089,-500.0,0.00024657,2]
[312254512,1705713034099,-500.0,0.00024657,2]
[312254513,1705713034108,-500.0,0.00024657,2]
[312254514,1705713034117,-500.0,0.00024657,2]
[312254515,1705713034127,-500.0,0.00024657,2]
[312254516,1705713034138,-603.00022994,0.00024657,2]
[312254517,1705713034147,-500.0,0.00024657,2]
[312254518,1705713034157,-500.0,0.00024657,2]
[312254519,1705713034168,-500.0,0.00024657,2]
[312254520,1705713034177,-500.0,0.00024657,2]
[312254521,1705713034187,-500.0,0.00024657,2]
[312254522,1705713034198,-500.0,0.00024657,2]
[312254523,1705713034210,-500.0,0.00024657,2]
[312254524,1705713034222,-500.0,0.00024657,2]
[312254525,1705713034233,-500.0,0.00024657,2]
[312254526,1705713034243,-500.0,0.00024657,2]
[312254527,1705713034252,-500.0,0.00024657,2]
[312254528,1705713034262,-500.0,0.00024657,2]
[312254529,1705713034271,-500.0,0.00024657,2]
[312254530,1705713034281,-500.0,0.00024657,2]
[312254531,1705713034291,-500.0,0.00024657,2]
[312254532,1705713034300,-500.0,0.00024657,2]
[312254533,1705713034310,-500.0,0.00024657,2]
[312254534,1705713034319,-500.0,0.00024657,2]
[312254535,1705713034328,-500.0,0.00024657,2]
[312254536,1705713034338,-500.0,0.00024657,2]
[312254537,1705713034347,-500.0,0.00024657,2]
[312254538,1705713034357,-315.708122,0.00024657,2]
[312254539,1705713034366,-496.18484363,0.00024657,2]
[312254540,1705713034376,-500.0,0.00024657,2]
[312254541,1705713034385,-500.0,0.00024657,2]
[312254542,1705713034394,-500.0,0.00024657,2]
[312254543,1705713034403,-500.0,0.00024657,2]
[312254544,1705713034412,-500.0,0.00024657,2]
[312254545,1705713034421,-500.0,0.00024657,2]
[312254546,1705713034431,-500.0,0.00024657,2]
[312254547,1705713034440,-500.0,0.00024657,2]
[312254548,1705713034450,-500.0,0.00024657,2]
[312254549,1705713034459,-500.0,0.00024657,2]
[312254550,1705713034469,-500.0,0.00024657,2]
[312254551,1705713034478,-500.0,0.00024657,2]
[312254552,1705713034487,-500.0,0.00024657,2]
[312254553,1705713034496,-500.0,0.00024657,2]
[312254554,1705713034505,-500.0,0.00024657,2]
[312254555,1705713034515,-500.0,0.00024657,2]
[312254556,1705713034524,-500.0,0.00024657,2]
[312254557,1705713034533,-500.0,0.00024657,2]
[312254558,1705713034541,-388.75256803,0.00024657,2]
[312254559,1705713034550,-500.0,0.00024657,2]
[312254560,1705713034559,-500.0,0.00024657,2]
[312254561,1705713034568,-300.0,0.00024657,2]
[312254562,1705713034578,-500.0,0.00024657,2]
[312254563,1705713034587,-500.0,0.00024657,2]
[312254564,1705713034596,-500.0,0.00024657,2]
[312254565,1705713034605,-500.0,0.00024657,2]
[312254566,1705713034615,-514.86732283,0.00024657,2]
[312254567,1705713034624,-500.0,0.00024657,2]
[312254568,1705713034634,-500.0,0.00024657,2]
[312254569,1705713034644,-500.0,0.00024657,2]
[312254570,1705713034653,-154.47520741,0.00024657,2]
[312254571,1705713034663,-500.0,0.00024657,2]
[312254572,1705713034672,-500.0,0.00024657,2]
[312254573,1705713034682,-500.0,0.00024657,2]
[312254574,1705713034692,-500.0,0.00024657,2]
[312254575,1705713034701,-500.0,0.00024657,2]
[312254576,1705713034711,-500.0,0.00024657,2]
[312254577,1705713034721,-500.0,0.00024657,2]
[312254578,1705713034731,-500.0,0.00024657,2]
[312254579,1705713034740,-500.0,0.00024657,2]
[312254580,1705713034749,-500.0,0.00024657,2]
[312254581,1705713034759,-511.65173872,0.00024657,2]
[312254582,1705713034768,-500.0,0.00024657,2]
[312254583,1705713034779,-500.0,0.00024657,2]
[312254584,1705713034788,-500.0,0.00024657,2]
[312254585,1705713034798,-500.0,0.00024657,2]
[312254586,1705713034807,-500.0,0.00024657,2]
[312254587,1705713034817,-500.0,0.00024657,2]
[312254588,1705713034827,-500.0,0.00024657,2]
[312254589,1705713034836,-500.0,0.00024657,2]
[312254590,1705713034846,-500.0,0.00024657,2]
[312254591,1705713034855,-500.0,0.00024657,2]
[312254592,1705713034864,-500.0,0.00024657,2]
[312254593,1705713034876,-500.0,0.00024657,2]
[312254594,1705713034886,-500.0,0.00024657,2]
[312254595,1705713034894,-500.0,0.00024657,2]
[312254596,1705713034904,-500.0,0.00024657,2]
[312254597,1705713034914,-500.0,0.00024657,2]
[312254598,1705713034924,-500.0,0.00024657,2]
[312254599,1705713034933,-500.0,0.00024657,2]
[312254600,1705713034942,-500.0,0.00024657,2]
[312254601,1705713034952,-500.0,0.00024657,2]
[312254602,1705713034962,-500.0,0.00024657,2]
[312254603,1705713034971,-500.0,0.00024657,2]
[312254604,1705713034980,-500.0,0.00024657,2]
[312254605,1705713034990,-500.0,0.00024657,2]
[312254606,1705713034999,-500.0,0.00024657,2]
[312254607,1705713035008,-500.0,0.00024657,2]
[312254608,1705713035018,-500.0,0.00024657,2]
[312254609,1705713035028,-500.0,0.00024657,2]
[312254610,1705713035037,-500.0,0.00024657,2]
[312254611,1705713035047,-500.0,0.00024657,2]
[312254612,1705713035057,-500.0,0.00024657,2]
[312254613,1705713035066,-500.0,0.00024657,2]
[312254614,1705713035076,-500.0,0.00024657,2]
[312254615,1705713035085,-500.0,0.00024657,2]
[312254616,1705713035095,-500.0,0.00024657,2]
[312254617,1705713035104,-500.0,0.00024657,2]
[312254618,1705713035114,-500.0,0.00024657,2]
[312254619,1705713035123,-117.96682522,0.00024657,2]
[312254620,1705713035641,-382.03317478,0.00024657,2]
[312254621,1705713035651,-500.0,0.00024657,2]
[312254622,1705713035661,-58.79048713,0.00024657,2]
[312254623,1705713035673,-259.56543941,0.00024657,2]
[312254628,1705713037438,-323.29407346,0.00024657,2]
[312254629,1705713037448,-129.34592654,0.00024657,2]
[312254630,1705713037459,-370.65407346,0.00024657,2]
[312254631,1705713037469,-51.13181382,0.00024657,2]
[312254632,1705713037480,-448.86818618,0.00024657,2]
[312254633,1705713037489,-313.09041142,0.00024657,2]
[312254634,1705713037501,-186.90958858,0.00024657,2]
[312254635,1705713037510,-477.80596602,0.00024657,2]
[312254636,1705713037526,-22.19403398,0.00024657,2]
[312254637,1705713037535,-500.0,0.00024657,2]
[312254638,1705713037544,-500.0,0.00024657,2]
[312254639,1705713037554,-500.0,0.00024657,2]
[312254640,1705713037563,-500.0,0.00024657,2]
[312254641,1705713037573,-500.0,0.00024657,2]
[312254642,1705713037582,-500.0,0.00024657,2]
[312254643,1705713037592,-500.0,0.00024657,2]
[312254644,1705713037601,-325.64499369,0.00024657,2]
[312254645,1705713037610,-500.0,0.00024657,2]
[312254646,1705713037619,-188.91542144,0.00024657,2]
[312254647,1705713037632,-311.08457856,0.00024657,2]
[312254648,1705713037641,-500.0,0.00024657,2]
[312254649,1705713037651,-160.84842144,0.00024657,2]
[312254650,1705713037667,-339.15157856,0.00024657,2]
[312254651,1705713037677,-500.0,0.00024657,2]
[312254652,1705713037687,-500.0,0.00024657,2]
[312254653,1705713037700,-500.0,0.00024657,2]
[312254654,1705713037711,-500.0,0.00024657,2]
[312254655,1705713037721,-500.0,0.00024657,2]
[312254656,1705713037730,-500.0,0.00024657,2]
[312254657,1705713037739,-500.0,0.00024657,2]
[312254658,1705713037749,-500.0,0.00024657,2]
[312254659,1705713037760,-500.0,0.00024657,2]
[312254660,1705713037770,-500.0,0.00024657,2]
[312254661,1705713037780,-500.0,0.00024657,2]
[312254662,1705713037789,-500.0,0.00024657,2]
[312254663,1705713037799,-500.0,0.00024657,2]
[312254664,1705713037809,-500.0,0.00024657,2]
[312254665,1705713037819,-500.0,0.00024657,2]
[312254666,1705713037830,-500.0,0.00024657,2]
[312254667,1705713037840,-500.0,0.00024657,2]
[312254668,1705713037850,-500.0,0.00024657,2]
[312254670,1705713037859,-500.0,0.00024657,2]
[312254672,1705713037868,-500.0,0.00024657,2]
[312254674,1705713037879,-500.0,0.00024657,2]
[312254676,1705713037892,-500.0,0.00024657,2]
[312254678,1705713037901,-500.0,0.00024657,2]
[312254680,1705713037910,-500.0,0.00024657,2]
[312254681,1705713037919,-500.0,0.00024657,2]
[312254683,1705713037929,-500.0,0.00024657,2]
[312254685,1705713037939,-500.0,0.00024657,2]
[312254687,1705713037949,-500.0,0.00024657,2]
[312254689,1705713037959,-500.0,0.00024657,2]
[312254691,1705713037969,-547.38,0.00024657,2]
[312254694,1705713037978,-500.0,0.00024657,2]
[312254696,1705713037987,-500.0,0.00024657,2]
[312254698,1705713037996,-500.0,0.00024657,2]
[312254700,1705713038006,-500.0,0.00024657,2]
[312254702,1705713038015,-500.0,0.00024657,2]
[312254704,1705713038025,-500.0,0.00024657,2]
[312254706,1705713038034,-500.0,0.00024657,2]
[312254708,1705713038043,-500.0,0.00024657,2]
[312254710,1705713038053,-500.0,0.00024657,2]
[312254712,1705713038063,-500.0,0.00024657,2]
[312254713,1705713038073,-500.0,0.00024657,2]
[312254714,1705713038082,-500.0,0.00024657,2]
[312254715,1705713038091,-347.02312144,0.00024657,2]
[312254716,1705713038105,-152.97687856,0.00024657,2]
[312254717,1705713038114,-500.0,0.00024657,2]
[312254718,1705713038123,-500.0,0.00024657,2]
[312254719,1705713038133,-500.0,0.00024657,2]
[312254720,1705713038142,-395.70321615,0.00024657,2]
[312254721,1705713038154,-104.29678385,0.00024657,2]
[312254722,1705713038163,-452.45721623,0.00024657,2]
[312254723,1705713038184,-47.54278377,0.00024657,2]
[312254724,1705713038194,-500.0,0.00024657,2]
[312254725,1705713038203,-500.0,0.00024657,2]
[312254726,1705713038213,-500.0,0.00024657,2]
[312254727,1705713038222,-62.01524445,0.00024657,2]
[312254728,1705713038234,-368.8999909,0.00024657,2]
[312254729,1705713038254,-69.08476465,0.00024657,2]
[312254730,1705713038264,-188.71458974,0.00024657,2]
[312254731,1705713038273,-500.0,0.00024657,2]
[312254732,1705713038285,-500.0,0.00024657,2]
[312254733,1705713038294,-500.0,0.00024657,2]
[312254734,1705713038304,-500.0,0.00024657,2]
[312254735,1705713038315,-500.0,0.00024657,2]
[312254736,1705713038324,-500.0,0.00024657,2]
[312254737,1705713038333,-500.0,0.00024657,2]
[312254738,1705713038342,-500.0,0.00024657,2]
[312254739,1705713038351,-500.0,0.00024657,2]